lending/lending_fUSD_20251022
["ID","MTS","AMOUNT","RATE_DAILY","PERIOD"]
[392099928,1761161443015,-502.35512583,0.00043835,120]
[392099929,1761161443024,-509.59733765,0.00043835,120]
[392099930,1761161443034,-559.55462596,0.00043835,120]
[392099931,1761161443044,-780.17,0.00043835,120]
[392099932,1761161443053,-500.0,0.00043835,120]
[392099933,1761161443062,-507.40682252,0.00043835,120]
[392099934,1761161443071,-512.19556955,0.00043835,120]
[392099935,1761161443080,-503.76656609,0.00043835,120]
[392099936,1761161443177,-619.07474474,0.00043835,120]
[392099939,1761161443199,-500.0,0.00043835,120]
[392099940,1761161443212,-990.94,0.00043835,120]
[392099942,1761161443221,-500.0,0.00043835,120]
[392099943,1761161443230,-500.0,0.00043835,120]
[392099944,1761161443239,-511.45847393,0.00043835,120]
[392099945,1761161443250,-564.28854655,0.00043835,120]
[392099946,1761161443259,-500.0,0.00043835,120]
[392099947,1761161443268,-525.79706564,0.00043835,120]
[392099948,1761161443280,-400.53709648,0.00043835,120]
[392099949,1761161443289,-1087.92,0.00043835,120]
[392099951,1761161443298,-1087.92,0.00043835,120]
[392099952,1761161443307,-547.02678886,0.00043835,120]
[392099953,1761161443316,-500.0,0.00043835,120]
[392099954,1761161443326,-510.04607237,0.00043835,120]
[392099955,1761161443335,-1044.35,0.00043835,120]
[392099956,1761161443344,-503.9681179,0.00043835,120]
[392099958,1761161443353,-461.58022605,0.00043835,120]
[392099959,1761161443363,-615.43341934,0.00043835,120]
[392099960,1761161443371,-501.21690092,0.00043835,120]
[392099961,1761161443381,-993.44,0.00043835,120]
[392099962,1761161443390,-993.44,0.00043835,120]
[392099963,1761161443399,-500.0,0.00043835,120]
[392099964,1761161443407,-549.96861634,0.00043835,120]
[392099965,1761161443417,-500.0,0.00043835,120]
[392099966,1761161443425,-362.80774297,0.00043835,120]
[392099967,1761161443435,-500.0,0.00043835,120]
[392099968,1761161443444,-500.0,0.00043835,60]
[392099969,1761161443454,-500.0,0.00043835,120]
[392099970,1761161443463,-500.68053786,0.00043835,120]
[392099971,1761161443472,-522.78048529,0.00043835,120]
[392099972,1761161443481,-507.33431278,0.00043835,120]
[392099973,1761161443490,-505.30566227,0.00043835,120]
[392099974,1761161443500,-508.63623957,0.00043835,120]
[392099975,1761161443510,-506.09660616,0.00043835,120]
[392099976,1761161443519,-500.0,0.00043835,120]
[392099977,1761161443528,-507.87146882,0.00043835,120]
[392099978,1761161443537,-500.0,0.00043835,120]
[392099979,1761161443546,-500.0,0.00043835,120]
[392099980,1761161443555,-500.0,0.00043835,120]
[392099981,1761161443564,-500.0,0.00043835,120]
[392099982,1761161443573,-500.0,0.00043835,120]
[392099983,1761161443582,-500.0,0.00043835,120]
[392099984,1761161443591,-500.0,0.00043835,60]
[392099985,1761161443600,-502.69554006,0.00043835,120]
[392099986,1761161443609,-506.94753795,0.00043835,120]
[392099987,1761161443618,-500.0,0.00043835,120]
[392099988,1761161443627,-500.0,0.00043835,120]
[392099989,1761161443636,-500.0,0.00043835,120]
[392099990,1761161443646,-500.0,0.00043835,120]
[392099991,1761161443655,-500.0,0.00043835,120]
[392099992,1761161443664,-500.45506342,0.00043835,120]
[392099993,1761161443673,-500.0,0.00043835,120]
[392099994,1761161443683,-500.0,0.00043835,120]
[392099995,1761161443692,-500.0,0.00043835,120]
[392099996,1761161443701,-556.84259295,0.00043835,120]
[392099997,1761161443710,-500.0,0.00043835,120]
[392099998,1761161443720,-500.94308516,0.00043835,120]
[392099999,1761161443729,-508.19579653,0.00043835,120]
[392100000,1761161443738,-500.0,0.00043835,120]
[392100001,1761161443747,-500.0,0.00043835,120]
[392100002,1761161443756,-508.43572326,0.00043835,120]
[392100003,1761161443765,-501.8737996,0.00043835,120]
[392100004,1761161443775,-524.75811781,0.00043835,120]
[392100005,1761161443784,-504.75241773,0.00043835,120]
[392100006,1761161443793,-528.75925394,0.00043835,120]
[392100007,1761161443802,-500.0,0.00043835,120]
[392100008,1761161443811,-500.0,0.00043835,120]
[392100009,1761161443820,-615.84606646,0.00043835,120]
[392100010,1761161443829,-500.97790397,0.00043835,120]
[392100011,1761161443839,-503.52052329,0.00043835,120]
[392100012,1761161443848,-559.98893019,0.00043835,120]
[392100013,1761161443857,-505.24709882,0.00043835,120]
[392100014,1761161443868,-290.117368,0.00043835,120]
[392100015,1761161443878,-508.2530237,0.00043835,120]
[392100016,1761161443887,-500.0,0.00043835,120]
[392100017,1761161443898,-500.0,0.00043835,120]
[392100018,1761161443908,-500.79446541,0.00043835,120]
[392100019,1761161443917,-502.14432295,0.00043835,120]
[392100020,1761161443927,-500.93375911,0.00043835,120]
[392100021,1761161443936,-519.4096955,0.00043835,120]
[392100022,1761161443946,-502.50664072,0.00043835,120]
[392100023,1761161443956,-171.7966278,0.00043835,120]
[392100024,1761161443966,-500.0,0.00043835,120]
[392100025,1761161443975,-500.0,0.00043835,120]
[392100026,1761161443985,-500.0,0.00043835,120]
[392100027,1761161443994,-501.77133782,0.00043835,120]
[392100028,1761161444005,-500.0,0.00043835,120]
[392100029,1761161444014,-598.59371992,0.00043835,120]
[392100030,1761161444024,-507.19361392,0.00043835,120]
[392100031,1761161444033,-501.19793312,0.00043835,120]
[392100032,1761161444043,-500.0,0.00043835,120]
[392100033,1761161444052,-500.0,0.00043835,120]
[392100034,1761161444062,-500.0,0.00043835,120]
[392100035,1761161444071,-500.0,0.00043835,120]
[392100036,1761161444080,-500.0,0.00043835,120]
[392100037,1761161444090,-500.0,0.00043835,120]
[392100038,1761161444099,-500.0,0.00043835,120]
[392100039,1761161444109,-500.0,0.00043835,120]
[392100040,1761161444118,-500.0,0.00043835,120]
[392100041,1761161444127,-1596.27,0.00043835,120]
[392100042,1761161444137,-500.0,0.00043835,120]
[392100043,1761161444146,-500.0,0.00043835,120]
[392100044,1761161444156,-500.0,0.00043835,120]
[392100045,1761161444166,-500.0,0.00043835,120]
[392100046,1761161444175,-500.0,0.00043835,60]
[392100047,1761161444184,-500.0,0.00043835,120]
[392100048,1761161444194,-500.0,0.00043835,120]
[392100049,1761161444209,-500.0,0.00043835,120]
[392100050,1761161444218,-500.0,0.00043835,120]
[392100051,1761161444228,-594.84452492,0.00043835,120]
[392100052,1761161444237,-500.0,0.00043835,120]
[392100053,1761161444247,-500.0,0.00043835,120]
[392100054,1761161444264,-500.0,0.00043835,120]
[392100055,1761161444283,-500.0,0.00043835,120]
[392100056,1761161444303,-500.0,0.00043835,120]
[392100057,1761161444326,-500.0,0.00043835,120]
[392100058,1761161444349,-500.0,0.00043835,120]
[392100059,1761161444371,-500.0,0.00043835,120]
[392100060,1761161444394,-500.0,0.00043835,120]
[392100061,1761161444415,-500.0,0.00043835,120]
[392100062,1761161444435,-500.0,0.00043835,120]
[392100063,1761161444458,-500.0,0.00043835,120]
[392100064,1761161444481,-540.8132191,0.00043835,120]
[392100065,1761161444504,-500.0,0.00043835,120]
[392100066,1761161444525,-500.0,0.00043835,120]
[392100067,1761161444549,-500.0,0.00043835,120]
[392100068,1761161444573,-1205.25,0.00043835,120]
[392100069,1761161444591,-500.0,0.00043835,120]
[392100070,1761161444601,-1205.25,0.00043835,120]
[392100071,1761161444611,-500.0,0.00043835,120]
[392100072,1761161444621,-500.0,0.00043835,120]
[392100073,1761161444630,-505.20998074,0.00043835,120]
[392100074,1761161444639,-500.0,0.00043835,120]
[392100075,1761161444649,-500.0,0.00043835,120]
[392100076,1761161444659,-500.0,0.00043835,120]
[392100077,1761161444668,-348.66665726,0.00043835,120]
[392100078,1761161444678,-500.0,0.00043835,120]
[392100079,1761161444687,-500.0,0.00043835,120]
[392100080,1761161444697,-500.0,0.00043835,120]
[392100081,1761161444707,-500.0,0.00043835,2]
[392100082,1761161444716,-500.0,0.00043835,120]
[392100083,1761161444725,-500.0,0.00043835,120]
[392100084,1761161444734,-184.4470243,0.00043835,120]
[392100085,1761161444743,-500.0,0.00043835,120]
[392100086,1761161444753,-837.99,0.00043835,120]
[392100087,1761161444763,-824.35,0.00043835,120]
[392100088,1761161444772,-824.35,0.00043835,120]
[392100089,1761161444782,-500.0,0.00043835,120]
[392100090,1761161444792,-645.19796387,0.00043835,120]
[392100091,1761161444802,-500.0,0.00043835,120]
[392100092,1761161444811,-500.0,0.00043835,120]
[392100093,1761161444821,-500.0,0.00043835,120]
[392100094,1761161444831,-500.0,0.00043835,120]
[392100095,1761161444840,-500.0,0.00043835,120]
[392100096,1761161444849,-500.0,0.00043835,120]
[392100097,1761161444859,-858.34,0.00043835,2]
[392100098,1761161444868,-500.0,0.00043835,7]
[392100099,1761161444878,-500.0,0.00043835,7]
[392100100,1761161444887,-500.0,0.00043835,120]
[392100101,1761161444896,-500.0,0.00043835,120]
[392100102,1761161444906,-500.0,0.00043835,120]
[392100103,1761161444915,-500.0,0.00043835,120]
[392100104,1761161444924,-469.47119028,0.00043835,120]
[392100105,1761161444934,-500.0,0.00043835,120]
[392100106,1761161444943,-1101.44,0.00043835,120]
[392100107,1761161444953,-623.15,0.00043835,120]
[392100108,1761161444962,-500.0,0.00043835,120]
[392100109,1761161444972,-623.15,0.00043835,120]
[392100110,1761161444984,-500.0,0.00043835,120]
[392100111,1761161444993,-668.32,0.00043835,120]
[392100112,1761161445002,-500.0,0.00043835,120]
[392100113,1761161445012,-500.0,0.00043835,120]
[392100114,1761161445022,-500.0,0.00043835,120]
[392100115,1761161445031,-500.0,0.00043835,120]
[392100116,1761161445042,-500.0,0.00043835,120]
[392100117,1761161445051,-500.0,0.00043835,120]
[392100118,1761161445061,-500.0,0.00043835,120]
[392100119,1761161445071,-4265.19,0.00043835,30]
[392100120,1761161445080,-500.0,0.00043835,120]
[392100121,1761161445090,-4265.19,0.00043835,30]
[392100122,1761161445100,-1263.06,0.00043835,120]
[392100123,1761161445109,-500.0,0.00043835,120]
[392100124,1761161445227,-500.0,0.00043835,120]
[392100125,1761161445237,-500.0,0.00043835,120]
[392100126,1761161445246,-500.0,0.00043835,120]
[392100127,1761161445257,-500.0,0.00043835,120]
[392100128,1761161445268,-1623.35,0.00043835,120]
[392100129,1761161445278,-1000.0,0.00043835,120]
[392100130,1761161445290,-538.57,0.00043835,120]
[392100131,1761161445300,-538.57,0.00043835,120]
[392100132,1761161445310,-891.43,0.00043835,120]
[392100133,1761161445319,-891.43,0.00043835,120]
[392100134,1761161445331,-500.0,0.00043835,120]
[392100135,1761161445340,-709.57,0.00043835,120]
[392100136,1761161445350,-709.57,0.00043835,120]
[392100137,1761161445359,-300.0,0.00043835,2]
[392100138,1761161445368,-617.0,0.00043835,120]
[392100139,1761161445377,-500.0,0.00043835,120]
[392100140,1761161445387,-461.03505671,0.00043835,120]
[392100141,1761161445396,-4110.15,0.00043835,120]
[392100142,1761161445406,-4110.15,0.00043835,120]
[392100143,1761161445415,-500.0,0.00043835,120]
[392100144,1761161445424,-500.0,0.00043835,120]
[392100145,1761161445434,-500.0,0.00043835,120]
[392100146,1761161445444,-500.0,0.00043835,16]
[392100147,1761161445454,-500.0,0.00043835,120]
[392100148,1761161445463,-500.0,0.00043835,120]
[392100150,1761161445474,-500.0,0.00043835,120]
[392100151,1761161445483,-500.0,0.00043835,120]
[392100152,1761161445497,-500.0,0.00043835,120]
[392100153,1761161445506,-500.0,0.00043835,120]
[392100154,1761161445516,-500.0,0.00043835,120]
[392100155,1761161445525,-889.38,0.00043835,120]
[392100156,1761161445534,-889.38,0.00043835,120]
[392100157,1761161445543,-500.0,0.00043835,120]
[392100158,1761161445553,-500.0,0.00043835,120]
[392100159,1761161445563,-777.67,0.00043835,120]
[392100160,1761161445572,-777.67,0.00043835,120]
[392100161,1761161445582,-500.0,0.00043835,120]
[392100162,1761161445592,-500.0,0.00043835,120]
[392100163,1761161445601,-500.0,0.00043835,120]
[392100164,1761161445611,-500.0,0.00043835,120]
[392100165,1761161445621,-500.0,0.00043835,120]
[392100166,1761161445631,-691.13,0.00043835,120]
[392100167,1761161445641,-691.13,0.00043835,120]
[392100168,1761161445651,-500.0,0.00043835,120]
[392100169,1761161445660,-500.0,0.00043835,120]
[392100170,1761161445670,-500.0,0.00043835,120]
[392100171,1761161445679,-500.0,0.00043835,120]
[392100172,1761161445692,-500.0,0.00043835,120]
[392100173,1761161445702,-500.0,0.00043835,120]
[392100174,1761161445711,-500.0,0.00043835,120]
[392100175,1761161445721,-500.0,0.00043835,120]
[392100176,1761161445731,-500.0,0.00043835,120]
[392100177,1761161445740,-500.0,0.00043835,120]
[392100178,1761161445750,-500.0,0.00043835,120]
[392100179,1761161445761,-500.0,0.00043835,120]
[392100180,1761161445771,-500.0,0.00043835,120]
[392100181,1761161445783,-500.0,0.00043835,120]
[392100182,1761161445796,-887.37,0.00043835,120]
[392100183,1761161445806,-3246.52,0.00043835,120]
[392100184,1761161445817,-887.37,0.00043835,120]
[392100185,1761161445829,-3246.52,0.00043835,120]
[392100186,1761161445840,-887.37,0.00043835,120]
[392100187,1761161445851,-500.0,0.00043835,120]
[392100188,1761161445861,-500.0,0.00043835,120]
[392100189,1761161445874,-500.0,0.00043835,120]
[392100190,1761161445884,-500.0,0.00043835,120]
[392100191,1761161445893,-500.0,0.00043835,120]
[392100192,1761161445903,-500.0,0.00043835,120]
[392100193,1761161445913,-500.0,0.00043835,120]
[392100194,1761161445923,-500.0,0.00043835,120]
[392100195,1761161445934,-500.0,0.00043835,120]
[392100196,1761161445944,-500.0,0.00043835,120]
[392100197,1761161445954,-500.0,0.00043835,120]
[392100198,1761161445963,-500.0,0.00043835,2]
[392100199,1761161445973,-500.0,0.00043835,120]
[392100200,1761161445983,-5477.48,0.00043835,120]
[392100201,1761161445992,-500.0,0.00043835,120]
[392100202,1761161446002,-5477.48,0.00043835,120]
[392100203,1761161446012,-500.0,0.00043835,120]
[392100204,1761161446022,-500.0,0.00043835,120]
[392100205,1761161446032,-513.69937906,0.00043835,3]
[392100206,1761161446042,-500.0,0.00043835,120]
[392100207,1761161446052,-521.96,0.00043835,120]
[392100208,1761161446061,-521.96,0.00043835,120]
[392100209,1761161446075,-500.0,0.00043835,120]
[392100210,1761161446085,-500.0,0.00043835,120]
[392100211,1761161446094,-500.0,0.00043835,120]
[392100212,1761161446104,-500.0,0.00043835,120]
[392100213,1761161446114,-500.0,0.00043835,120]
[392100214,1761161446125,-500.0,0.00043835,120]
[392100215,1761161446135,-500.0,0.00043835,120]
[392100216,1761161446147,-500.0,0.00043835,120]
[392100217,1761161446158,-537.84,0.00043835,120]
[392100218,1761161446167,-537.84,0.00043835,120]
[392100219,1761161446177,-500.0,0.00043835,120]
[392100220,1761161446187,-189.05705355,0.00043835,120]
[392100221,1761161446197,-500.0,0.00043835,120]
[392100222,1761161446207,-593.34,0.00043835,120]
[392100223,1761161446220,-593.34,0.00043835,120]
[392100224,1761161446231,-665.52,0.00043835,120]
[392100225,1761161446240,-500.0,0.00043835,120]
[392100226,1761161446251,-665.52,0.00043835,120]
[392100227,1761161446260,-1404.73,0.00043835,120]
[392100228,1761161446269,-636.1,0.00043835,120]
[392100229,1761161446279,-500.0,0.00043835,120]
[392100230,1761161446290,-500.0,0.00043835,120]
[392100231,1761161446300,-500.0,0.00043835,120]
[392100232,1761161446309,-500.0,0.00043835,120]
[392100233,1761161446319,-500.0,0.00043835,120]
[392100234,1761161446328,-500.0,0.00043835,120]
[392100235,1761161446337,-500.0,0.00043835,120]
[392100236,1761161446347,-500.0,0.00043835,120]
[392100237,1761161446356,-500.0,0.00043835,120]
[392100238,1761161446365,-500.0,0.00043835,120]
[392100239,1761161446375,-500.0,0.00043835,120]
[392100240,1761161446384,-510.03984012,0.00043835,120]
[392100241,1761161446394,-500.0,0.00043835,120]
[392100242,1761161446403,-500.0,0.00043835,120]
[392100243,1761161446413,-825.9,0.00043835,120]
[392100245,1761161446422,-500.0,0.00043835,120]
[392100247,1761161446431,-857.87,0.00043835,120]
[392100248,1761161446444,-500.0,0.00043835,120]
[392100249,1761161446453,-707.53,0.00043835,120]
[392100250,1761161446463,-640.45002756,0.00043835,120]
[392100251,1761161446472,-500.0,0.00043835,120]
[392100254,1761161446481,-500.0,0.00043835,120]
[392100255,1761161446491,-500.0,0.00043835,120]
[392100256,1761161446500,-500.0,0.00043835,120]
[392100257,1761161446510,-500.0,0.00043835,120]
[392100258,1761161446524,-500.0,0.00043835,120]
[392100259,1761161446534,-500.0,0.00043835,120]
[392100260,1761161446543,-1079.01,0.00043835,120]
[392100261,1761161446552,-1079.01,0.00043835,120]
[392100262,1761161446561,-789.86,0.00043835,120]
[392100263,1761161446570,-789.86,0.00043835,120]
[392100264,1761161446579,-789.86,0.00043835,120]
[392100265,1761161446588,-692.82,0.00043835,120]
[392100266,1761161446598,-692.82,0.00043835,120]
[392100267,1761161446607,-500.0,0.00043835,120]
[392100268,1761161446616,-500.0,0.00043835,120]
[392100269,1761161446626,-500.0,0.00043835,120]
[392100270,1761161446637,-500.0,0.00043835,120]
[392100271,1761161446647,-1016.54,0.00043835,120]
[392100272,1761161446656,-1016.54,0.00043835,120]
[392100273,1761161446665,-500.0,0.00043835,120]
[392100274,1761161446674,-500.0,0.00043835,120]
[392100275,1761161446683,-500.0,0.00043835,120]
[392100276,1761161446692,-500.0,0.00043835,120]
[392100277,1761161446702,-500.0,0.00043835,120]
[392100278,1761161446711,-504.74009552,0.00043835,120]
[392100279,1761161446721,-545.11661452,0.00043835,120]
[392100280,1761161446730,-509.07167753,0.00043835,120]
[392100281,1761161446740,-651.4,0.00043835,120]
[392100282,1761161446749,-651.4,0.00043835,120]
[392100283,1761161446759,-500.0,0.00043835,120]
[392100284,1761161446768,-500.0,0.00043835,120]
[392100285,1761161446778,-183.91648037,0.00043835,120]
[392100286,1761161446787,-500.0,0.00043835,120]
[392100287,1761161446797,-511.09365496,0.00043835,120]
[392100288,1761161446806,-500.0,0.00043835,120]
[392100289,1761161446815,-290.41198778,0.00043835,120]
[392100290,1761161446824,-500.0,0.00043835,120]
[392100291,1761161446833,-500.0,0.00043835,120]
[392100292,1761161446843,-500.0,0.00043835,120]
[392100293,1761161446852,-151.0,0.00043835,14]
[392100294,1761161446862,-500.0,0.00043835,120]
[392100295,1761161446872,-500.0,0.00043835,120]
[392100296,1761161446985,-500.0,0.00043835,120]
[392100297,1761161446995,-151.0,0.00043835,120]
[392100298,1761161447005,-500.0,0.00043835,120]
[392100299,1761161447014,-500.0,0.00043835,120]
[392100300,1761161447023,-518.59135662,0.00043835,120]
[392100301,1761161447032,-151.0,0.00043835,120]
[392100302,1761161447042,-500.0,0.00043835,120]
[392100303,1761161447051,-500.0,0.00043835,120]
[392100304,1761161447060,-500.0,0.00043835,120]
[392100305,1761161447070,-500.0,0.00043835,120]
[392100306,1761161447079,-500.0,0.00043835,120]
[392100307,1761161447088,-500.0,0.00043835,120]
[392100308,1761161447098,-500.0,0.00043835,120]
[392100309,1761161447107,-500.0,0.00043835,120]
[392100310,1761161447116,-500.0,0.00043835,120]
[392100311,1761161447125,-500.0,0.00043835,120]
[392100312,1761161447134,-500.0,0.00043835,120]
[392100313,1761161447143,-500.0,0.00043835,120]
[392100314,1761161447152,-500.0,0.00043835,120]
[392100315,1761161447162,-151.0,0.00043835,120]
[392100316,1761161447171,-279.382813,0.00043835,120]
[392100317,1761161447179,-503.21872641,0.00043835,120]
[392100318,1761161447189,-500.0,0.00043835,120]
[392100319,1761161447201,-1074.58,0.00043835,120]
[392100320,1761161447211,-1074.58,0.00043835,120]
[392100321,1761161447224,-1074.58,0.00043835,120]
[392100322,1761161447234,-1074.58,0.00043835,120]
[392100323,1761161447244,-500.0,0.00043835,120]
[392100324,1761161447254,-508.13163361,0.00043835,120]
[392100325,1761161447266,-500.0,0.00043835,120]
[392100326,1761161447275,-500.0,0.00043835,120]
[392100327,1761161447287,-500.0,0.00043835,120]
[392100328,1761161447298,-151.0,0.00043835,120]
[392100329,1761161447308,-526.85281162,0.00043835,120]
[392100330,1761161447317,-500.0,0.00043835,120]
[392100331,1761161447327,-500.0,0.00043835,120]
[392100332,1761161447336,-500.0,0.00043835,120]
[392100333,1761161447345,-500.0,0.00043835,120]
[392100334,1761161447354,-500.0,0.00043835,120]
[392100335,1761161447364,-558.32,0.00043835,120]
[392100336,1761161447374,-558.32,0.00043835,120]
[392100337,1761161447384,-506.34489947,0.00043835,120]
[392100338,1761161447394,-500.0,0.00043835,120]
[392100339,1761161447403,-164.55900679,0.00043835,120]
[392100340,1761161447412,-1203.5,0.00043835,120]
[392100341,1761161447421,-1203.5,0.00043835,120]
[392100342,1761161447430,-1203.5,0.00043835,120]
[392100343,1761161447439,-500.0,0.00043835,120]
[392100344,1761161447447,-151.0,0.00043835,120]
[392100345,1761161447457,-1203.5,0.00043835,120]
[392100346,1761161447466,-500.0,0.00043835,120]
[392100347,1761161447475,-500.0,0.00043835,120]
[392100348,1761161447484,-500.0,0.00043835,120]
[392100349,1761161447493,-545.64283092,0.00043835,120]
[392100350,1761161447502,-500.0,0.00043835,120]
[392100351,1761161447511,-500.0,0.00043835,120]
[392100352,1761161447520,-500.0,0.00043835,120]
[392100353,1761161447530,-500.0,0.00043835,120]
[392100354,1761161447539,-500.0,0.00043835,120]
[392100355,1761161447548,-249.59983788,0.00043835,120]
[392100356,1761161447559,-500.0,0.00043835,120]
[392100357,1761161447568,-500.90866317,0.00043835,120]
[392100358,1761161447577,-500.0,0.00043835,120]
[392100359,1761161447586,-500.0,0.00043835,120]
[392100360,1761161447596,-501.88475987,0.00043835,120]
[392100361,1761161447605,-504.61057693,0.00043835,120]
[392100362,1761161447616,-502.84421814,0.00043835,120]
[392100363,1761161447625,-500.0,0.00043835,120]
[392100364,1761161447634,-609.65,0.00043835,120]
[392100365,1761161447643,-609.65,0.00043835,120]
[392100366,1761161447652,-2024.8,0.00043835,120]
[392100367,1761161447662,-2024.8,0.00043835,120]
[392100368,1761161447671,-2024.8,0.00043835,120]
[392100369,1761161447681,-2024.8,0.00043835,120]
[392100370,1761161447690,-500.0,0.00043835,120]
[392100371,1761161447700,-151.0,0.00043835,120]
[392100372,1761161447711,-500.0,0.00043835,120]
[392100373,1761161447720,-151.0,0.00043835,120]
[392100374,1761161447730,-431.12211751,0.00043835,120]
[392100375,1761161447739,-500.0,0.00043835,120]
[392100376,1761161447749,-500.0,0.00043835,120]
[392100377,1761161447758,-500.0,0.00043835,120]
[392100378,1761161447767,-500.0,0.00043835,120]
[392100379,1761161447776,-438.06893653,0.00043835,120]
[392100380,1761161447786,-504.2542875,0.00043835,120]
[392100381,1761161447795,-500.0,0.00043835,120]
[392100382,1761161447804,-648.02,0.00043835,120]
[392100383,1761161447813,-500.0,0.00043835,120]
[392100384,1761161447823,-502.61506345,0.00043835,120]
[392100385,1761161447832,-188.878195,0.00043835,30]
[392100386,1761161447841,-692.44,0.00043835,120]
[392100387,1761161447851,-500.0,0.00043835,120]
[392100388,1761161447861,-1235.34734514,0.00043835,30]
[392100389,1761161447870,-165.52110351,0.00043836,2]
[392100390,1761161447879,-501.76444225,0.00043873,10]
[392100391,1761161447888,-500.0,0.00043873,10]
[392100392,1761161447898,-500.0,0.00043873,10]
[392100393,1761161447907,-500.0,0.00043873,10]
[392100394,1761161447917,-739.66203479,0.00043873,120]
[392100395,1761161447927,-500.0,0.00043877,120]
[392100396,1761161447936,-500.0,0.00043877,120]
[392100397,1761161447946,-500.0,0.00043877,120]
[392100398,1761161447955,-500.0,0.00043877,120]
[392100399,1761161447965,-500.0,0.00043877,120]
[392100400,1761161447974,-224.36886972,0.00043877,120]
[392100401,1761161447983,-500.0,0.00043877,120]
[392100402,1761161447993,-500.0,0.00043877,120]
[392100403,1761161448002,-500.0,0.00043877,120]
[392100404,1761161448013,-500.0,0.00043877,120]
[392100405,1761161448022,-500.0,0.00043877,120]
[392100406,1761161448031,-443.96172985,0.00043877,120]
[392100407,1761161448041,-500.0,0.00043877,120]
[392100408,1761161448050,-500.0,0.00043877,120]
[392100409,1761161448059,-1074.58,0.00043877,120]
[392100410,1761161448069,-500.0,0.00043877,120]
[392100411,1761161448080,-1203.5,0.00043877,120]
[392100412,1761161448090,-500.0,0.00043877,120]
[392100413,1761161448100,-2024.8,0.00043877,120]
[392100414,1761161448109,-26624.2326158,0.00043877,3]
[392100415,1761161448119,-26624.2326158,0.00043878,3]
[392100416,1761161448128,-433.53056434,0.00043878,120]
[392100417,1761161448138,-887.37,0.00043878,120]
[392100418,1761161448148,-500.0,0.00043878,120]
[392100419,1761161448158,-151.0,0.00043878,120]
[392100420,1761161448167,-151.0,0.00043878,120]
[392100421,1761161448177,-166.553835,0.00043878,120]
[392100422,1761161448186,-187.304323,0.00043878,120]
[392100423,1761161448195,-187.304323,0.00043878,120]
[392100424,1761161448204,-187.304323,0.00043878,120]
[392100425,1761161448218,-187.304323,0.00043878,120]
[392100426,1761161448228,-789.86,0.00043878,120]
[392100427,1761161448237,-500.0,0.00043878,120]
[392100428,1761161448248,-500.0,0.00043878,120]
[392100429,1761161448259,-26624.2326158,0.00043879,3]
[392100430,1761161448269,-8874.74420527,0.0004388,3]
[392100431,1761161448279,-500.0,0.00043887,120]
[392100432,1761161448292,-500.0,0.00043887,120]
[392100433,1761161448301,-500.0,0.00043887,120]
[392100434,1761161448310,-500.0,0.00043887,120]
[392100435,1761161448319,-500.0,0.00043887,120]
[392100436,1761161448328,-500.0,0.00043887,120]
[392100437,1761161448337,-239.13812188,0.00043887,120]